Cogmind - Beta 15 @@@ ROGUE MODE // 2025.09.22 @ 01:38:40 Player: Runagate Result: Destroyed by S-10 Pest with Light Assault Rifle Performance ------------- Evolutions (0) 0 Regions Visited (1) 200 Robots Destroyed (17) 85 Value Destroyed (258) 258 Prototype IDs (0) 0 Alien Tech Used (0) 0 Bonus (0) 0 TOTAL SCORE: 543 Bonus ------- None Cogmind --------- Core Integrity 0/250 Matter 300/300 Energy 100/100 System Corruption 0% Temperature Cool (0) Movement Core (800) Ox15 Location -10/Materials Parts ------- > --- POWER (1) -------- (None) > --- PROPULSION (2) --- (None) > --- UTILITY (2) ------ Small Storage Unit High-capacity Storage Unit > --- WEAPON (2) ------- Mining Claw > --- INVENTORY (20) --- Ion Engine Peak State ------------ > --- POWER ------------ Ion Engine > --- PROPULSION ------- Wheel Compact Wheel > --- UTILITY ---------- Small Storage Unit Tractor Beam > --- WEAPON ----------- Small Laser Assault Rifle > --- INVENTORY -------- Aluminum Leg [Rating: 7] Favorites ----------- Power Ion Engine Engine Ion Engine Propulsion Compact Wheel Leg Aluminum Leg Wheel Compact Wheel Flight Unit Flight Unit Utility Small Storage Unit Device Tractor Beam Storage Small Storage Unit Weapon Assault Rifle Energy Gun Small Laser Ballistic Gun Assault Rifle Launcher Grenade Launcher Slashing Weapon Mining Claw Build | -11 -10 ------- Run | Yrd Mat Slots Evolved . | . . Power . | . . Propulsion . | . . Utility . | . . Weapon . | . . Parts Attached 15 | 9 6 Power 1 | 1 . Engine 1 | 1 . Core . | . . Reactor . | . . Propulsion 5 | 4 1 Treads . | . . Leg 2 | 2 . Wheel 2 | 2 . Hover . | . . Flight 1 | . 1 Utility 3 | 2 1 Device 1 | 1 . Storage 2 | 1 1 Processor . | . . Hackware . | . . Protection . | . . Artifact . | . . Weapon 6 | 2 4 Energy Gun 2 | 1 1 Energy Cannon . | . . Ballistic Gun 2 | 1 1 Ballistic Cannon . | . . Launcher 1 | . 1 Special Weapon . | . . Impact Weapon . | . . Slashing Weapon 1 | . 1 Piercing Weapon . | . . Special Melee Weapon . | . . Unidentified Prototypes . | . . Parts Lost 9 | . 9 Power 1 | . 1 Propulsion 3 | . 3 Utility 1 | . 1 Weapon 4 | . 4 Highest Loss Streak 3 | . 3 To Critical Strikes 1 | . 1 Average Backups 1 | . 1 Power . | . 1 Propulsion . | . . Utility . | . . Weapon . | . . Tool/Special . | . . Unused Backups 1 | . 1 Power 1 | . 1 Propulsion . | . . Utility . | . . Weapon . | . . Tool/Special . | . . Average Slot Usage (%) 77 | . 77 Engine 3 | . 3 Wheel 20 | . 20 Device 4 | . 4 Storage 22 | . 22 Energy Gun 5 | . 5 Ballistic Gun 10 | . 10 Launcher 1 | . 1 Slashing Weapon 7 | . 7 Peak Build Rating 7 | 7 7 Average Rating 5 | 5 5 On Entrance 3 | . 7 Naked Turns . | . . Heaviest Build 50 | 14 50 Greatest Support 26 | 26 26 Greatest Overweight (x) 16 | . 16 Average Overweight (x) . | . 1 Largest Inventory Capacity 20 | 8 20 Average Capacity 14 | 6 15 Most Carried 2 | 2 2 Average Carried 1 | . 1 Final Capacity 20 | 8 20 Final Carried 1 | 1 1 Class Distribution -------------------- 100% | Mutant Dominant Class ---------------- Mutant | -10/Materials Resources | -11 -10 ----------- Run | Yrd Mat Matter Collected 484 | 313 171 Remotely 326 | 249 77 Salvage Created 467 | 128 339 Parts 34 | 6 28 Haulers Intercepted . | . . Recyclers Shooed 2 | . 2 Parts Field Recycled . | . . Retrieved Matter . | . . Parts Self-Destructed . | . . Prevented . | . . Kills | -11 -10 ------- Run | Yrd Mat Combat Hostiles Destroyed 8 | . 8 Melee 3 | . 3 Guns 3 | . 3 AOE 2 | . 2 Classes Destroyed 7 | 2 5 Worker 1 | . 1 Builder 2 | . 2 Tunneler 2 | 2 . Recycler 2 | 1 1 Watcher 2 | . 2 Swarmer 4 | . 4 Grunt 4 | . 4 Best Kill Streak 5 | 2 5 Combat Bots Only 2 | . 2 Max Kills in Single Turn 3 | 1 3 Gunslinging . | . . Exploded 1 | . 1 Melee 1 | . 1 Uniques/NPCs Destroyed . | . . Combat | -11 -10 -------- Run | Yrd Mat Hostile Shots Fired 120 | . 120 Missed 28 | . 28 Hits 92 | . 92 Projectile 92 | . 92 Critical Strikes 2 | . 2 Damage Taken 908 | . 908 Core 252 | . 252 Absorbed by Shields . | . . Core Remaining (%) 100 | 100 . Volleys Fired 39 | 5 34 Largest 2 | 2 2 Hottest 70 | 60 70 Shots Fired 61 | 10 51 Gun 56 | 10 46 Cannon . | . . Launcher 5 | . 5 Special . | . . Kinetic 37 | 5 32 Thermal 19 | 5 14 Explosive 5 | . 5 Electromagnetic . | . . Robot Hit Streak 9 | 5 9 Robot Miss Streak 2 | 2 2 Penetration Max . | . . Secondary Targets . | . . Shots Hit Robots 44 | 6 38 Core Hits 27 | 4 23 Critical Kills . | . . Critical Parts Destroyed . | . . Critical Strikes . | . . Melee Attacks 15 | . 15 Impact . | . . Slashing 15 | . 15 Piercing . | . . Sneak Attacks 1 | . 1 Combat Hostiles . | . . Follow-up Attacks . | . . Damage Inflicted 929 | 89 840 Guns 441 | 87 354 Cannons . | . . Explosions 368 | . 368 Melee 118 | . 118 Ramming 2 | 2 . Kinetic 268 | 34 234 Thermal 173 | 53 120 Explosive 368 | . 368 Electromagnetic . | . . Impact . | . . Slashing 118 | . 118 Piercing . | . . Highest Corruption . | . . Average Corruption . | . . Corruption Purged . | . . Corruption Blocked . | . . Overload Shots . | . . Overflow Damage 18 | . 18 Projectiles . | . . Explosions 18 | . 18 Melee . | . . Knockbacks . | . . Impact . | . . Kinetic . | . . Secondary . | . . Self-Inflicted Damage 50 | . 50 Shots 2 | . 2 Rammed . | . . Targets Rammed 1 | 1 . Kicked 1 | 1 . Crushed . | . . Highest Temperature 142 | . 142 Average Temperature 89 | . 89 Received Heat Transfer 201 | . 201 Siege Activations . | . . Martial Activations . | . . Shielding Activations . | . . Robots Disrupted . | . . Combat Hostiles . | . . Robots Corrupted . | . . Combat Hostiles . | . . Parts Fried . | . . Impact Corruptions . | . . Robots Melted . | . . Combat Hostiles . | . . Parts Melted 1 | . 1 Heat Transferred 400 | 125 275 Parts Sabotaged . | . . Parts Stolen . | . . Parts Stripped . | . . Power Chain Reactions . | . . Alert | -11 -10 ------- Run | Yrd Mat Maximum Alert Level . | . . Low Security (%) 100 | 100 100 Level 1 . | . . Level 2 . | . . Level 3 . | . . Level 4 . | . . Level 5 . | . . High Security . | . . Max Security . | . . Peak Influence 110 | 5 110 Initial 3 | . 3 Average 24 | 1 28 Influence Increases 282 | 15 267 Destroy 0b10 Robot/C 160 | . 160 Destroy 0b10 Robot/NC 45 | 15 30 Destroy Leader 24 | . 24 Destroy Structure 38 | . 38 Partial Spotted 15 | . 15 Influence Decreases 262 | 10 252 Entered New Map 2 | . 2 Time Decay 180 | 10 170 Lost Part 80 | . 80 Squads Dispatched . | . . Investigation . | . . Extermination . | . . Reinforcement . | . . Assault . | . . Garrison . | . . Intercept . | . . Searches Triggered . | . . Construction Impeded . | . . Haulers Reinforced . | . . Active Scanning Responses . | . . Cargo Convoy Interrupts . | . . Stealth | -11 -10 --------- Run | Yrd Mat Distress Signals 2 | . 2 Communications Jammed . | . . Distress Signals . | . . Times Spotted 15 | . 15 Peak Tracking Total 4 | . 4 Tactical Retreats . | . . Traps | -11 -10 ------- Run | Yrd Mat Traps Triggered . | . . Indirectly . | . . Trap Hack Attempts . | . . Triggered . | . . Disarmed . | . . Reprogrammed . | . . Reused . | . . Traps Extracted . | . . Installed . | . . Triggered . | . . Machines | -11 -10 ---------- Run | Yrd Mat Machines Disabled . | . . Max in Single Turn . | . . Machines Repaired . | . . Machines Dismantled . | . . Machines Sabotaged . | . . Overloaded Fab Kills . | . . Hacking | -11 -10 --------- Run | Yrd Mat Machines Accessed . | . . Terminals . | . . Fabricators . | . . Repair Stations . | . . Recycling Units . | . . Scanalyzers . | . . Garrison Access . | . . Total Hacks . | . . Successful . | . . Failed . | . . Catastrophic . | . . Database Lockouts . | . . Manual . | . . Terminals . | . . Fabricators . | . . Repair Stations . | . . Recycling Units . | . . Scanalyzers . | . . Garrison Access . | . . Terminal Hacks . | . . Fabricator Hacks . | . . Repair Station Hacks . | . . Recycling Unit Hacks . | . . Scanalyzer . | . . Garrison Access Hacks . | . . Unauthorized Hacks . | . . Terminals . | . . Fabricators . | . . Repair Stations . | . . Recycling Units . | . . Scanalyzers . | . . Garrison Access . | . . Data Cores Recovered . | . . Used . | . . Hacking Detections . | . . Full Trace Events . | . . Feedback Events . | . . Feedback Blocked . | . . Robot Schematics Acquired . | . . Robots Built . | . . Authchips . | . . Time . | . . Total Robot Build Rating . | . . Part Schematics Acquired . | . . Parts Built . | . . Authchips . | . . Time . | . . Total Part Build Rating . | . . Parts Repaired . | . . Time . | . . Parts Recycled . | . . Recycled Matter . | . . Retrieved Matter . | . . Retrieved Components . | . . Parts Scanalyzed . | . . Part Schematics Acquired . | . . Parts Damaged . | . . Bothacking | -11 -10 ------------ Run | Yrd Mat Used RIF Installer . | . . Robots Hacked . | . . Non-combat . | . . Combat . | . . Robot Hacks Applied . | . . Relay Couplers Released . | . . Fabnet Peak Effective % . | . . Robots Rewired . | . . Allies Hacked . | . . Hacks Repelled . | . . Allies | -11 -10 -------- Run | Yrd Mat Total Allies . | . . Largest Group . | . . Highest-Rated Group . | . . Highest-Rated Ally . | . . Total Orders . | . . Ally Attacks . | . . Total Damage . | . . Kills . | . . Allies Corrupted . | . . Allies Melted . | . . Intel | -11 -10 ------- Run | Yrd Mat Active Infowar (turns) . | . . Robot Analysis Total . | . . Derelict Logs Recovered . | . . Drone Launches . | . . Drone Recoveries . | . . Exploration | -11 -10 ------------- Run | Yrd Mat Turns Passed 597 | 79 518 Spaces Moved 343 | 49 294 Core 14 | 4 10 Treads . | . . Legs 15 | 15 . Wheels 313 | 30 283 Hover . | . . Flight 1 | . 1 Fastest Speed 50 | 50 90 Average Speed 121 | 96 126 Slowest Speed 920 | 120 920 Overloaded Moves . | . . Propulsion Burnouts . | . . Robots Hopped . | . . Potential Cave-ins . | . . Cave-ins Triggered . | . . Exploration Rate (%) 26 | 4 48 Regions Visited 1 Branch Regions . Pre-discovered Areas . | . . Known Exits Taken . | . . Unknown Exits Taken 1 | 1 . Scrap Searched . | . . Spaces Dug . | . . Terrain Destroyed 40 | . 40 Melee . | . . Projectile . | . . AOE 40 | . 40 Terrain Rammed . | . . Walls Destroyed . | . . Machines Disabled . | . . Actions | -11 -10 --------- Run | Yrd Mat Total 428 | 66 362 Wait 10 | . 10 Move 342 | 48 294 Hop . | . . Pick Up 2 | 1 1 Fast Attach 11 | 7 4 Attach 1 | . 1 Detach . | . . Swap 6 | 3 3 Drop 1 | 1 . Fire 39 | 5 34 Melee 15 | . 15 Ram . | . . Kick 1 | 1 . Crush . | . . Escape Stasis . | . . Rewire . | . . Trap . | . . Miscellaneous . | . . Route ------- -11/Scrapyard -10/Materials (discovered 1 exit: [*Min]) History --------- Turn | Location | Event 3 | -11/Scrapyard | Discovered new exit (range 16) 80 | -11/Scrapyard | Entered Materials 259 | -10/Materials | Lost 3 parts (1p1u1w) 306 | -10/Materials | Build established: Mutant 376 | -10/Materials | Discovered new exit (range 8) 462 | -10/Materials | Core integrity fell below 50% 563 | -10/Materials | Core integrity fell below 20% 598 | -10/Materials | Destroyed by S-10 Pest with Light Assault Rifle Last Messages --------------- 00572_ Acquired Lgt. Assault Rifle. 00573_ U-05 Engineer builds a Wall. 00573_ K-01 Serf collects debris. 00578_ U-05 Engineer lays Concrete. 00580_ U-05 Engineer builds a Wall. 00580_ U-05 Engineer destroyed. 00581_ K-01 Serf collects debris. 00581_ S-10 Pest destroyed. 00585_ K-01 Serf collects debris. 00585_ U-05 Engineer lays Concrete. 00587_ U-05 Engineer builds a Wall. 00589_ K-01 Serf collects debris. 00590_ Lgt. Assault Rifle destroyed. 00591_ Sneak attack on K-01 Serf. 00591_ K-01 Serf destroyed. 00592_ U-05 Engineer lays Concrete. 00594_ The unstable cave ceiling collapses. 00594_ U-05 Engineer builds a Wall. 00594_ Acquired 15 matter. 00596_ R-06 Scavenger collects Wheel. Map ----- +----------------------------------------------------+ | | | | | | | | | | | | | | | | | | | | | | | | | ?????????????????????????????????????????????????? | | ?????????????????????????????????????????????????? | | ???????????????????????????????????????????####### | | ?????????????????????????################### | | ??????????##########?????# # | | ??????????# #?????# # "" [ | | ??????????# !!! #?????# + "Y | | ??????????# !!! #?????# # "" | | ??????????# !!! #???### # | | ??????????#! ###### ##################### | | ??????????# """ + ####"""##??????????? | | ??????????# """ ###### u# ##"|||"##?????????? | | ??????????# """ #???## r # #"" ""#?????????? | | ??????????# #???# @ # # #?????????? | | ????????? ###+########## % # # < #?????????? | | ????????? ### #?????????? | | ???????? ### #?????????? | | ????????? ### #??????????? | | ?????????####+###### ##??# ##########??? | | ?????????? ## ##### # "T" #??? | | ??????????""""" ! ## ^[ ^ + #??? | | ??????????""""" ## ^ !%* # #??? | | ??????????""""" + ^ %!=%=""" """ # #??? | | ??????????""""" ## %s*""" """ # !! #??? | | ??????????""""" ## ! [=""" """ # !! #??? | | ??????????""""" ## / !! !#??? | | ??????????""""" =+ % # #??? | | ?????????# ###### # ! ! #??? | | ?????????##########????## #### ####+###########??? | | ????????????????????????# #??# #?????????????????? | | ???????????????????????## #??# #?????????????????? | | ???????????????????????## #??# #?????????????????? | | ???????????????????????## #??# #?????????????????? | | ??????????????????????###+####+##????????????????? | | ??????????????????????# #????????????????? | | ???????????????????#### #????????????????? | | ???????????????????# ########?????????? | | ???????????????????# # ! # """ #?????????? | +----------------------------------------------------+ Best States ------------- Heat Dissipation 25 Energy Generation 10 Energy Capacity 250 Matter Stores 300 Matter Capacity 300 Sight Range 16 Terrain Scan Density 10 Evasion (%) 45 Item Schematics ----------------- None Robot Schematics ------------------ None Fabricated ------------ Nothing Repaired ---------- Nothing Alien Tech Used ----------------- None Achievements -------------- None Challenges ------------ None Game ------ Seed PlexusConceptShielding Manual? 0 Play Time 00:06:16 Cumulative 86.3 hours Start 2025.09.22 @ 01:35:14 End 2025.09.22 @ 01:38:40 Sessions 1 Manual Loads 0 Difficulty Rogue Special Mode None Game No. 183 Rogue 181 Adventurer 0 Explorer 2 Win Type - Total 0 Types 0/0/0/0/0/0/0/0/0/0 Lore% 30 Gallery% 46 Achievement% 41 Wizard Run 0 Options --------- Layout 2 ASCII 0 Keyboard 1 Movement Arrows Keybinds 0 Fullscreen 1 Font 28/SmallcapsGlow Map View 50x49 Zoom Use 0% Tactical HUD 1 Map Filters NONE Filters NONE Steam 1 RUN: 8a25811b-4565-4396-84d8-f3e3cede01c0